bitfinex-derivatives/quotes_ETHF0:USTF0_20210109
["timestamp","ask_amount","ask_price","bid_price","bid_amount"]
[1610150715855,2.00811176,1229.7,1229.6,5.80259]
[1610150716154,0.39981176,1229.7,1229.6,5.80259]
[1610150717260,2.01851176,1229.7,1229.6,5.80259]
[1610150717462,2.01851176,1229.7,1229.6,1.793]
[1610150717858,2.01851176,1229.7,1229.6,5.80259]
[1610150718058,0.39981176,1229.7,1229.6,5.80259]
[1610150722463,0.39981176,1229.7,1229.5,0.23622345]
[1610150722761,0.39981176,1229.7,1229.6,2.2757]
[1610150724166,0.39981176,1229.7,1229.6,6.28529]
[1610150736997,0.39981176,1229.7,1229.6,7.70214781]
[1610150738181,0.39981176,1229.7,1229.6,3.69255781]
[1610150738882,0.39981176,1229.7,1229.6,7.70214781]
[1610150739082,0.39981176,1229.7,1229.6,8.88102214]
[1610150739583,0.39981176,1229.7,1229.6,4.87143214]
[1610150740787,0.39981176,1229.7,1229.6,8.88102214]
[1610150740988,0.39981176,1229.7,1229.6,4.87143214]
[1610150742690,0.39981176,1229.7,1229.6,8.88102214]
[1610150747596,0.39981176,1229.7,1229.6,4.87143214]
[1610150748901,4.40940176,1229.7,1229.6,4.87143214]
[1610150749500,0.39981176,1229.7,1229.6,4.87143214]
[1610150750802,4.40940176,1229.7,1229.6,4.87143214]
[1610150752403,0.39981176,1229.7,1229.6,4.87143214]
[1610150752804,0.39981176,1229.7,1229.6,8.88102214]
[1610150755808,0.39981176,1229.7,1229.6,4.87143214]
[1610150756911,0.39981176,1229.7,1229.6,8.88102214]
[1610150758314,0.39981176,1229.7,1229.6,7.70214781]
[1610150758518,0.39981176,1229.7,1229.6,6.28529]
[1610150759914,0.39981176,1229.7,1229.5,1.18350821]
[1610150759915,0.39981176,1229.7,1229.5,2.60349305]
[1610150760121,0.39981176,1229.7,1229.6,1.42002488]
[1610150760442,0.39981176,1229.7,1229.6,3.69132488]
[1610150760914,0.39981176,1229.7,1229.6,7.70091488]
[1610150761315,70.09325599,1232.1,1229.6,3.69132488]
[1610150761714,42.4381062,1232.1,1229.6,3.69132488]
[1610150761915,38.95324911,1232.1,1230.3,0.23695729]
[1610150762115,0.39981176,1231.5,1230.3,3.12905729]
[1610150763145,2.75241176,1231.5,1230.3,3.36543864]
[1610150763318,30.0,1231.4,1230.3,3.36543864]
[1610150764820,4.00959,1230.4,1230.3,3.36543864]
[1610150765021,34.00959,1230.4,1230.3,3.36543864]
[1610150766119,34.00959,1230.4,1230.3,0.47333864]
[1610150768526,30.0,1230.4,1230.3,0.47333864]
[1610150769126,34.00959,1230.4,1230.3,0.47333864]
[1610150770327,30.0,1230.4,1230.3,0.47333864]
[1610150771124,34.00959,1230.4,1230.3,0.47333864]
[1610150772824,30.0,1230.4,1230.3,0.47333864]
[1610150774025,34.00959,1230.4,1230.3,0.47333864]
[1610150774526,30.0,1230.4,1230.3,0.47333864]
[1610150776430,34.00959,1230.4,1230.3,0.47333864]
[1610150776829,4.00959,1230.4,1230.3,0.47333864]
[1610150777230,2.1375,1230.6,1230.3,0.47333864]
[1610150777431,2.235,1230.9,1230.3,0.47333864]
[1610150777635,30.0,1231.1,1230.3,0.47333864]
[1610150777835,2.3549,1231.2,1230.3,0.47333864]
[1610150778236,30.0,1231.3,1230.3,0.47333864]
[1610150778436,4.00959,1230.9,1230.8,4.00959]
[1610150778636,2.7639,1231.1,1230.8,4.00959]
[1610150780237,30.0,1231.0,1230.8,4.00959]
[1610150780438,4.00959,1230.9,1230.3,2.40193864]
[1610150780738,34.00959,1230.9,1230.3,2.40193864]
[1610150781140,30.0,1230.9,1230.3,2.40193864]
[1610150781540,30.0,1230.8,1230.3,2.40193864]
[1610150782442,4.00959,1230.4,1230.3,2.40193864]
[1610150782642,4.00959,1230.4,1230.3,0.47333864]
[1610150783054,2.7377,1230.8,1230.3,0.47333864]
[1610150783445,2.7377,1230.8,1230.2,0.23656279]
[1610150783644,2.7377,1230.8,1229.9,2.0081]
[1610150783865,2.7377,1230.8,1229.7,55.12187953]
[1610150784242,2.7377,1230.8,1229.8,0.23552272]
[1610150784444,2.7377,1230.8,1230.7,4.00959]
[1610150785547,2.7639,1231.1,1230.7,4.00959]
[1610150785761,32.75241176,1231.5,1230.7,4.00959]
[1610150786348,32.75241176,1231.5,1230.2,3.04796254]
[1610150786547,4.00959,1230.6,1230.5,4.00959]
[1610150786948,4.00959,1230.6,1230.2,3.04796254]
[1610150787347,1.9244,1231.1,1230.2,3.04796254]
[1610150788450,1.9244,1231.1,1230.7,4.00959]
[1610150790462,1.9244,1231.1,1231.0,4.00959]
[1610150791555,1.9244,1231.1,1230.2,3.04796254]
[1610150791754,36.76200176,1231.5,1230.2,52.43356254]
[1610150792154,6.76200176,1231.5,1230.2,52.43356254]
[1610150792557,6.76200176,1231.5,1231.4,4.00959]
[1610150793162,36.76200176,1231.5,1231.4,4.00959]
[1610150793959,36.76200176,1231.5,1230.2,52.43356254]
[1610150794458,4.00959,1231.1,1230.2,52.43356254]
[1610150794760,6.46359,1231.1,1230.2,52.43356254]
[1610150796461,2.454,1231.1,1230.9,4.00959]
[1610150797463,2.454,1231.1,1230.2,3.04796254]
[1610150797862,2.454,1231.1,1230.3,47.2259]
[1610150798464,2.454,1231.1,1231.0,4.00959]
[1610150800067,2.75241176,1231.5,1231.0,4.00959]
[1610150800366,2.75241176,1231.5,1231.0,12.37679]
[1610150800568,2.75241176,1231.5,1231.0,8.3672]
[1610150801067,2.75241176,1231.5,1231.4,4.00959]
[1610150801567,2.75241176,1231.5,1231.0,8.3672]
[1610150803070,6.76200176,1231.5,1231.4,4.00959]
[1610150803268,6.76200176,1231.5,1231.0,8.3672]
[1610150803567,36.76200176,1231.5,1231.0,8.3672]
[1610150804471,32.75241176,1231.5,1231.0,8.3672]
[1610150804975,4.00959,1231.1,1231.0,12.37679]
[1610150805279,2.3364,1231.1,1231.0,12.37679]
[1610150806177,2.3364,1231.1,1231.0,8.3672]
[1610150806981,2.3364,1231.1,1231.0,12.37679]
[1610150807177,2.3364,1231.1,1231.0,8.3672]
[1610150809079,2.3364,1231.1,1231.0,12.37679]
[1610150810379,2.1398,1231.2,1231.0,12.37679]
[1610150811682,2.1398,1231.2,1231.0,4.00959]
[1610150812081,2.75241176,1231.5,1231.0,4.00959]
[1610150812283,2.75241176,1231.5,1231.1,53.4455]
[1610150813282,2.75241176,1231.5,1231.4,4.00959]
[1610150815084,6.76200176,1231.5,1231.4,4.00959]
[1610150817001,6.76200176,1231.5,1230.8,0.23443052]
[1610150817284,6.76200176,1231.5,1230.9,4.00959]
[1610150818787,2.75241176,1231.5,1230.8,0.23443052]
[1610150819286,2.75241176,1231.5,1231.4,4.00959]
[1610150821288,6.76200176,1231.5,1231.4,4.00959]
[1610150822089,6.76200176,1231.5,1231.0,62.2258]
[1610150823289,2.75241176,1231.5,1231.2,4.00959]
[1610150825290,2.75241176,1231.5,1231.4,4.00959]
[1610150825992,2.75241176,1231.5,1231.0,62.2258]
[1610150827393,4.00959,1231.4,1231.3,4.00959]
[1610150827993,2.75241176,1231.5,1231.3,4.00959]
[1610150829296,2.75241176,1231.5,1231.0,62.2258]
[1610150829495,6.76200176,1231.5,1231.0,66.23539]
[1610150830396,36.76200176,1231.5,1230.8,0.23443052]
[1610150831598,4.00959,1230.9,1230.8,0.23443052]
[1610150831808,34.00959,1230.9,1230.8,0.23443052]
[1610150832501,34.00959,1230.9,1230.7,0.70333434]
[1610150832701,30.0,1230.9,1230.7,0.46886103]
[1610150833001,30.0,1230.9,1074.5,1.02781819]
[1610150833199,30.0,1230.9,1229.3,2.1752]
[1610150834004,30.0,1230.9,1230.1,4.00959]
[1610150834606,30.0,1230.9,1230.0,67.5709]
[1610150835309,32.9459,1230.8,1230.0,67.5709]
[1610150836011,32.9459,1230.8,1230.4,4.00959]
[1610150836209,2.9459,1230.8,1230.4,4.00959]
[1610150836409,32.1229,1231.1,1230.4,4.00959]
[1610150838018,4.00959,1230.5,1230.4,4.00959]
[1610150840114,4.00959,1230.5,1230.2,49.5942]
[1610150841719,34.00959,1230.5,1230.1,2.5708]
[1610150842113,34.00959,1230.5,1230.0,0.23588799]
[1610150842114,4.00959,1230.2,1230.0,0.23588799]
[1610150844416,30.0,1230.1,1230.0,0.23588799]
[1610150845517,32.9161,1230.1,1230.0,0.23588799]
[1610150851422,32.9161,1230.1,1228.8,2.3606696]
[1610150851620,66.1684,1230.0,1228.8,2.3606696]
[1610150851822,30.0,1229.9,1228.8,2.3606696]
[1610150852023,34.00959,1229.9,1228.8,2.3606696]
[1610150854125,4.00959,1228.9,1228.8,2.3606696]
[1610150854325,6.49979,1228.9,1228.8,2.3606696]
[1610150856235,6.49979,1228.9,1228.0,45.9921]
[1610150856236,6.49979,1228.9,1228.7,4.00959]
[1610150856430,2.4902,1228.9,1228.4,0.23854708]
[1610150856732,2.7932,1229.3,1228.4,0.23854708]
[1610150856929,2.7932,1229.3,1228.6,0.23848657]
[1610150857332,2.7932,1229.3,1228.7,0.23845663]
[1610150857730,32.9161,1230.1,1228.8,0.23836399]
[1610150858136,32.9161,1230.1,1229.4,4.00959]
[1610150858533,2.9161,1230.1,1229.4,4.00959]
[1610150858731,30.0,1230.3,1229.4,4.00959]
[1610150859132,30.0,1230.3,1229.1,0.23805587]
[1610150860238,4.00959,1229.2,1229.1,0.23805587]
[1610150860746,4.00959,1229.2,1229.1,0.47620539]
[1610150861141,4.00959,1229.2,1229.1,0.23814952]
[1610150861340,4.00959,1229.2,1229.1,0.71391333]
[1610150861939,1.8606,1230.0,1229.1,0.71391333]
[1610150862140,30.0,1230.3,1229.2,9.5718]
[1610150862348,30.0,1230.3,1229.4,4.00959]
[1610150863143,30.0,1230.3,1229.2,11.61037559]
[1610150864340,4.00959,1229.3,1229.2,11.61037559]
[1610150865342,4.00959,1229.3,1229.2,11.3726]
[1610150867441,4.00959,1229.3,1229.2,11.61096136]
[1610150868342,1.8408,1230.3,1229.2,11.61096136]
[1610150868845,4.00959,1229.3,1229.2,11.61096136]
[1610150869046,4.00959,1229.3,1229.2,2.03916136]
[1610150870750,32.9547,1230.0,1229.2,2.03916136]
[1610150870950,2.9547,1230.0,1229.2,2.03916136]
[1610150871352,4.00959,1229.3,1229.2,1.8008]
[1610150871750,4.00959,1229.3,1228.9,3.13121266]
[1610150873349,4.00959,1229.0,1228.9,3.13121266]
[1610150877057,4.00959,1229.0,1228.9,11.97951266]
[1610150877353,32.9547,1230.0,1228.9,7.14080266]
[1610150877557,2.9547,1230.0,1229.3,54.0632]
[1610150877959,1.8408,1230.3,1229.3,54.0632]
[1610150878168,30.0,1230.7,1229.3,54.0632]
[1610150878464,30.0,1230.7,1229.5,0.23891214]
[1610150878665,30.0,1230.7,1229.5,2.61441214]
[1610150878864,30.0,1231.4,1229.6,0.23870939]
[1610150879063,30.0,1231.4,1229.7,0.23851862]
[1610150879386,30.0,1231.4,1230.0,4.00959]
[1610150879563,30.0,1231.4,1230.5,60.1835]
[1610150880565,30.0,1231.3,1230.5,60.1835]
[1610150880775,32.0312,1231.3,1230.5,60.1835]
[1610150881285,32.0312,1231.3,1229.8,2.84426786]
[1610150881463,4.00959,1230.6,1230.0,4.00959]
[1610150881864,1.9416,1230.7,1229.8,62.68336786]
[1610150882981,1.9416,1230.7,1229.8,62.4447]
[1610150883367,4.00959,1230.0,1229.8,62.4447]
[1610150883568,4.00959,1230.0,1229.8,2.6056]
[1610150884767,4.00959,1230.0,1229.7,0.23850895]
[1610150884969,4.00959,1230.0,1229.7,8.8311]
[1610150885668,4.00959,1229.8,1229.7,55.2802]
[1610150887070,1.9416,1230.7,1229.7,55.2802]
[1610150887272,1.9416,1230.7,1229.7,0.4771381]
[1610150887471,30.0,1231.2,1230.2,4.00959]
[1610150887870,30.0,1231.2,1230.2,62.63029]
[1610150889572,4.00959,1230.3,1230.2,58.6207]
[1610150891570,4.00959,1230.3,1230.2,62.63029]
[1610150893070,4.00959,1230.3,1230.2,58.6207]
[1610150895372,4.00959,1230.3,1229.8,2.41917117]
[1610150895581,30.0,1230.3,1229.8,2.41917117]
[1610150895973,30.0,1230.3,1229.8,0.23897117]
[1610150897573,4.00959,1229.9,1229.6,0.71713106]
[1610150897774,30.0,1229.8,1229.6,0.71713106]
[1610150897983,30.0,1229.8,1229.6,0.23908376]
[1610150899079,30.0,1229.8,1229.5,50.02566752]
[1610150899080,30.0,1229.8,1229.5,49.5475]
[1610150899579,4.00959,1229.6,1229.5,49.5475]
[1610150900780,34.00959,1229.6,1229.5,49.5475]
[1610150901583,34.00959,1229.6,1229.2,2.856568]
[1610150903601,4.00959,1229.3,1229.2,2.856568]
[1610150904482,4.00959,1229.3,1229.2,10.259868]
[1610150904682,4.00959,1229.3,1229.2,10.0206]
[1610150905487,30.0,1230.0,1229.2,10.0206]
[1610150905685,30.0,1230.0,1229.2,2.85531961]
[1610150905886,30.0,1230.0,1229.4,49.3697]
[1610150907683,32.8159,1230.1,1229.4,49.3697]
[1610150907886,32.8159,1230.1,1229.5,4.00959]
[1610150908584,2.8159,1230.1,1229.5,4.00959]
[1610150908889,30.0,1230.3,1229.5,4.00959]
[1610150909586,30.0,1230.3,1230.0,50.8958]
[1610150909885,4.00959,1230.1,1230.0,50.8958]
[1610150910592,30.0,1230.3,1230.0,50.8958]
[1610150910787,2.8019,1230.4,1230.0,50.8958]
[1610150911296,30.0,1230.7,1229.9,4.00959]
[1610150911688,30.0,1230.7,1230.5,65.1013]
[1610150911891,70.21583936,1231.2,1229.8,2.95285287]
[1610150912091,70.21583936,1231.2,1230.3,52.6394]
[1610150912387,4.00959,1230.5,1229.9,0.23796509]
[1610150913190,4.00959,1230.5,1230.3,58.0207]
[1610150917897,34.00959,1230.5,1230.3,58.0207]
[1610150918799,4.00959,1230.5,1230.3,58.0207]
[1610150919801,34.00959,1230.5,1230.3,58.0207]
[1610150922005,34.00959,1230.5,1230.1,2.4607]
[1610150922205,4.00959,1230.2,1230.1,2.4607]
[1610150922408,34.00959,1230.2,1229.8,2.7149]
[1610150922708,34.00959,1230.2,1229.5,2.334]
[1610150922908,35.95619,1230.2,1229.3,0.23865315]
[1610150923107,35.95619,1230.2,1229.2,2.6173]
[1610150923306,35.95619,1230.2,1229.1,0.23888103]
[1610150923513,35.95619,1230.2,1229.3,62.4249]
[1610150924306,4.00959,1229.7,1229.4,4.00959]
[1610150924707,1.9466,1230.2,1229.3,65.31394556]
[1610150924708,1.9466,1230.2,1229.3,65.55229375]
[1610150924917,1.9466,1230.2,1229.3,65.31394819]
[1610150925509,1.9466,1230.2,1229.4,0.23813891]
[1610150926008,2.2497,1230.5,1229.4,0.23813891]
[1610150926207,2.2497,1230.5,1230.0,4.00959]
[1610150926607,30.0,1230.9,1230.0,4.00959]
[1610150926808,30.0,1230.9,1230.1,55.4886]
[1610150928318,4.00959,1230.3,1230.2,4.00959]
[1610150930817,30.0,1230.9,1230.2,4.00959]
[1610150932218,30.0,1230.9,1230.5,4.00959]
[1610150932417,30.0,1230.9,1230.1,55.4886]
[1610150933822,2.2098,1231.0,1230.1,55.4886]
[1610150934119,30.0,1231.0,1230.1,55.4886]
[1610150934322,4.00959,1230.5,1230.1,55.4886]
[1610150936222,4.00959,1230.3,1230.2,4.00959]
[1610150938431,32.1443,1231.0,1230.2,4.00959]
[1610150940232,32.1443,1231.0,1230.4,4.00959]
[1610150940635,32.1443,1231.0,1230.1,55.4886]
[1610150940936,32.1443,1231.0,1230.4,9.4292]
[1610150942437,4.00959,1230.5,1230.4,9.4292]
[1610150949747,34.00959,1230.5,1230.1,0.23694378]
[1610150950047,34.00959,1230.5,1229.9,2.33711852]
[1610150950247,36.84039,1230.5,1229.9,0.23791852]
[1610150950447,4.00959,1230.0,1229.8,54.9365]
[1610150950749,34.00959,1230.0,1229.8,54.9365]
[1610150951047,30.0,1230.0,1229.8,54.9365]
[1610150951847,30.0,1229.9,1229.8,54.9365]
[1610150952348,34.00959,1229.9,1229.8,54.9365]
[1610150954950,34.00959,1229.9,1229.3,2.88949116]
[1610150955852,34.00959,1229.9,1229.3,2.6507]
[1610150956052,34.00959,1229.9,1229.2,61.63305566]
[1610150956551,4.00959,1229.3,1229.2,61.63305566]
[1610150957653,34.00959,1229.3,1229.2,61.63305566]
[1610150958754,34.00959,1229.3,1229.2,0.23905566]
[1610150959057,34.00959,1229.3,1229.1,0.23917805]
[1610150959854,34.00959,1229.3,1229.0,2.88255178]
[1610150960357,4.00959,1229.1,1229.0,2.88255178]
[1610150960557,34.00959,1229.1,1229.0,2.88255178]
[1610150961257,34.00959,1229.1,1229.0,2.6432]
[1610150961457,34.00959,1229.1,1229.0,62.169]
[1610150961658,4.00959,1229.1,1229.0,62.64731438]
[1610150963760,4.00959,1229.1,1229.0,62.169]
[1610150963960,4.00959,1229.1,1229.0,62.88683411]
[1610150964462,4.00959,1229.6,1229.1,54.3203]
[1610150964662,2.8194,1229.9,1229.1,2.3802]
[1610150964961,30.0,1230.1,1229.5,54.98]
[1610150965262,30.0,1230.1,1229.5,55.21889224]
[1610150965466,2.7117,1230.2,1229.6,0.23889277]
[1610150965667,32.8308,1230.5,1229.6,0.23889277]
[1610150965862,32.8308,1230.5,1229.7,0.23881971]
[1610150966061,32.8308,1230.5,1230.0,54.8878]
[1610150966362,4.00959,1230.4,1230.3,4.00959]
[1610150966562,4.00959,1230.4,1230.0,54.8878]
[1610150967263,34.00959,1230.4,1230.0,54.8878]
[1610150967462,34.00959,1230.4,1229.9,0.23866164]
[1610150967862,30.0,1230.4,1229.8,0.23885667]
[1610150968063,30.0,1230.4,1229.6,0.23910242]
[1610150968268,59.9634,1230.1,1229.6,0.23910242]
[1610150968565,4.00959,1229.7,1229.3,0.23941256]
[1610150968766,30.0,1229.6,1229.2,0.23948478]
[1610150969270,30.0,1229.6,1229.1,0.23942053]
[1610150969668,30.0,1229.6,1229.0,0.23948004]
[1610150969968,30.0,1229.6,1228.9,0.2393774]
[1610150970470,4.00959,1229.0,1228.9,0.2393774]
[1610150970669,92.18569,1229.0,1228.8,0.4787548]
[1610150970867,92.18569,1229.0,1228.7,0.23949632]
[1610150971368,88.1761,1229.0,1228.7,0.23949632]
[1610150971570,88.1761,1229.0,1228.6,0.23985223]
[1610150972371,4.00959,1228.6,1228.5,0.23998442]
[1610150974074,34.00959,1228.6,1228.5,0.23998442]
[1610150974775,34.00959,1228.6,1228.4,0.23995004]
[1610150975076,4.00959,1228.6,1228.4,0.23995004]
[1610150976480,4.00959,1228.6,1228.5,0.23996316]
[1610150977279,4.00959,1228.6,1228.4,0.47988107]
[1610150977682,4.00959,1228.6,1228.5,0.23990606]
[1610150978178,2.5001,1229.4,1228.8,52.1318]
[1610150978579,4.00959,1229.4,1229.3,4.00959]
[1610150978781,2.2758,1229.7,1229.3,12.83109]
[1610150979080,30.0,1230.5,1229.3,12.83109]
[1610150979481,30.0,1230.5,1229.3,8.8215]
[1610150979781,30.0,1230.5,1229.4,0.23884313]
[1610150980081,30.0,1230.4,1229.5,0.23881526]
[1610150980385,32.466,1230.4,1229.5,0.23881526]
[1610150980581,4.00959,1229.6,1229.5,0.23881526]
[1610150980781,4.00959,1229.6,1229.4,0.23893551]
[1610150980782,34.00959,1229.6,1229.4,0.23893551]
[1610150981185,34.00959,1229.6,1229.3,0.23897249]
[1610150981487,30.0,1229.6,1229.2,0.23911835]
[1610150981891,30.0,1229.6,1229.3,0.23910638]
[1610150982188,30.0,1229.6,1229.1,0.47823669]
[1610150982189,30.0,1229.6,1229.2,0.23917401]
[1610150982389,2.5499,1230.0,1229.2,0.23917401]
[1610150982891,2.5499,1230.0,1229.3,0.23901904]
[1610150983190,2.5499,1230.0,1229.5,4.00959]
[1610150983590,30.0,1229.9,1229.5,4.00959]
[1610150983793,30.0,1229.9,1229.5,0.23879551]
[1610150984091,30.0,1229.9,1229.3,0.23893212]
[1610150984591,30.0,1229.9,1229.2,0.23899056]
[1610150984892,32.5499,1230.0,1229.2,0.23899056]
[1610150985192,4.00959,1229.3,1229.2,0.23899056]
[1610150985395,4.00959,1229.3,1229.2,0.47775502]
[1610150985895,32.5499,1230.0,1229.2,0.47775502]
[1610150986393,32.5499,1230.0,1229.3,0.23892626]
[1610150986993,32.5499,1230.0,1229.1,0.47785252]
[1610150986994,32.5499,1230.0,1229.2,0.23904091]
[1610150987293,4.00959,1229.2,1229.1,0.23918375]
[1610150987793,4.00959,1229.2,1229.0,0.47836749]
[1610150988493,4.00959,1229.2,1229.1,0.47829341]
[1610150988994,30.0,1229.9,1229.1,0.47829341]
[1610150989193,30.0,1229.9,1229.1,0.71700224]
[1610150989494,4.00959,1229.5,1229.3,4.00959]
[1610150989694,4.00959,1229.5,1229.3,4.24858645]
[1610150989995,4.00959,1229.5,1229.3,0.23899645]
[1610150990394,4.00959,1229.5,1229.2,0.47799291]
[1610150990697,4.00959,1229.5,1229.3,0.23897184]
[1610150991295,34.00959,1229.5,1229.3,0.23897184]
[1610150991495,34.00959,1229.5,1229.1,0.23922809]
[1610150991998,34.00959,1229.5,1229.0,0.23913341]
[1610150992698,34.00959,1229.5,1228.9,2.08120752]
[1610150993203,30.0,1229.5,1228.9,2.08120752]
[1610150993399,64.1934,1230.0,1228.9,1.8421]
[1610150993400,30.0,1229.4,1228.9,1.8421]
[1610150993599,4.00959,1229.0,1228.8,0.23921233]
[1610150993801,34.00959,1229.0,1228.8,0.23921233]
[1610150994400,34.00959,1229.0,1228.7,0.47842467]
[1610150994401,34.00959,1229.0,1228.7,0.23920522]
[1610150994801,34.00959,1229.0,1228.6,0.23928506]
[1610150995101,34.00959,1229.0,1228.5,0.47857011]
[1610150995102,34.00959,1229.0,1228.4,0.23946658]
[1610150995602,4.00959,1228.5,1228.4,0.23946658]
[1610150995804,34.00959,1228.5,1228.4,0.23946658]
[1610150996903,4.00959,1228.5,1228.4,0.23946658]
[1610150997505,4.00959,1228.5,1228.3,0.47889947]
[1610150998207,1.8829,1229.1,1228.3,0.47889947]
[1610150998412,2.771,1229.4,1228.4,0.47827303]
[1610150998607,2.771,1229.4,1228.5,55.2417]
[1610150998808,52.4893,1230.5,1228.9,0.23858825]
[1610150999107,14.93251649,1231.3,1228.9,0.23858825]
[1610150999108,30.0,1230.2,1229.2,0.23824216]
[1610150999409,30.0,1230.3,1229.4,0.23802345]
[1610150999607,30.0,1230.3,1229.5,8.6952]
[1610150999810,4.00959,1230.0,1229.8,4.00959]
[1610151000208,30.0,1230.3,1229.6,0.2377869]
[1610151000609,30.0,1230.3,1229.5,8.93300969]
[1610151001209,30.0,1230.3,1229.5,8.6952]
[1610151001611,30.0,1230.7,1229.5,8.6952]
[1610151001813,4.00959,1229.9,1229.8,4.00959]
[1610151003616,4.00959,1229.9,1229.7,0.23737918]
[1610151004615,4.00959,1229.9,1229.6,0.23692992]
[1610151004917,4.00959,1229.9,1229.5,8.93209748]
[1610151005617,30.0,1229.8,1229.5,8.93209748]
[1610151006121,4.00959,1229.6,1229.5,8.6952]
[1610151006319,30.0,1229.8,1229.5,8.6952]
[1610151006722,30.0,1230.4,1229.5,8.6952]
[1610151007921,4.00959,1229.6,1229.5,8.6952]
[1610151008624,34.00959,1229.6,1229.5,8.6952]
[1610151009622,4.00959,1229.6,1229.5,8.6952]
[1610151010724,30.0,1230.1,1229.5,8.6952]
[1610151011925,4.00959,1229.6,1229.5,8.6952]
[1610151012125,4.00959,1229.6,1229.3,2.1333]
[1610151012425,4.00959,1229.6,1229.3,58.0488]
[1610151012826,4.00959,1229.6,1229.4,0.23671497]
[1610151013125,4.00959,1229.6,1229.5,0.23658366]
[1610151013626,4.00959,1229.6,1229.4,0.23662468]
[1610151013827,32.6416,1230.2,1229.4,0.23662468]
[1610151014327,4.00959,1229.5,1229.4,0.23662468]
[1610151014526,4.00959,1229.5,1229.3,60.76124935]
[1610151014527,4.00959,1229.5,1229.3,60.52466311]
[1610151014725,4.00959,1229.5,1229.3,2.47586311]
[1610151015427,4.00959,1229.5,1229.3,0.23666311]
[1610151015727,4.00959,1229.5,1229.2,0.23694205]
[1610151015929,30.0,1229.4,1229.2,0.23694205]
[1610151016228,4.00959,1229.2,1229.1,0.23694824]
[1610151016430,34.00959,1229.2,1229.1,0.23694824]
[1610151016728,34.00959,1229.2,1229.0,0.23713079]
[1610151016928,34.00959,1229.2,1228.8,0.23737712]
[1610151017527,30.0,1229.1,1228.8,0.23737712]
[1610151018227,4.00959,1228.9,1228.8,0.23737712]
[1610151018427,34.00959,1228.9,1228.8,0.23737712]
[1610151018930,34.00959,1228.9,1228.7,2.21027027]
[1610151020729,30.0,1228.9,1228.7,2.21027027]
[1610151020929,30.0,1228.8,1228.7,2.21027027]
[1610151022031,30.0,1228.8,1228.7,1.9728]
[1610151022230,30.0,1228.8,1228.6,48.22752755]
[1610151022430,30.0,1229.3,1228.6,48.22752755]
[1610151022632,30.0,1229.3,1228.7,0.4758453]
[1610151022831,2.3555,1229.6,1228.7,0.4758453]
[1610151023032,2.3555,1229.6,1229.0,0.2378829]
[1610151023231,2.3555,1229.6,1229.1,7.4386]
[1610151023432,2.3555,1229.6,1229.1,7.67654616]
[1610151023633,32.3555,1229.6,1229.2,0.23806373]
[1610151024434,4.00959,1229.3,1229.1,7.67688188]
[1610151024636,34.00959,1229.3,1229.1,7.67688188]
[1610151024835,34.00959,1229.3,1229.1,7.4386]
[1610151025035,30.0,1229.3,1229.1,7.4386]
[1610151025635,30.0,1229.2,1229.1,7.4386]
[1610151026437,34.00959,1229.2,1229.1,7.4386]
[1610151027337,4.00959,1229.2,1229.1,7.4386]
[1610151028338,4.00959,1229.2,1229.1,7.67747108]
[1610151028738,4.00959,1229.2,1229.1,7.4386]
[1610151029037,4.00959,1229.2,1229.1,7.6772992]
[1610151029838,4.00959,1229.2,1229.1,7.4386]
[1610151030339,34.00959,1229.2,1229.1,7.67728854]
[1610151030638,30.0,1229.2,1229.1,7.4386]
[1610151030937,34.00959,1229.2,1229.1,7.4386]
[1610151031840,30.0,1229.2,1229.1,7.4386]
[1610151032439,30.0,1229.5,1229.1,7.4386]
[1610151032940,4.00959,1229.2,1229.1,7.4386]
[1610151033743,34.00959,1229.2,1229.1,7.4386]
[1610151035647,34.00959,1229.2,1228.7,2.75660988]
[1610151036551,34.00959,1229.2,1228.7,2.518]
[1610151036749,34.00959,1229.2,1228.5,0.23872153]
[1610151036952,34.00959,1229.2,1228.6,0.23870003]
[1610151037251,4.00959,1228.7,1228.5,0.47731386]
[1610151037453,4.00959,1228.7,1228.6,0.47735475]
[1610151037853,4.00959,1228.7,1228.5,0.71603212]
[1610151038052,4.00959,1228.7,1228.6,0.47737151]
[1610151039153,4.00959,1228.7,1228.6,48.07817151]
[1610151039853,4.00959,1228.7,1228.6,0.47737151]
[1610151041053,34.00959,1228.7,1228.6,0.47737151]
[1610151042156,34.00959,1228.7,1228.5,0.47766422]
[1610151043359,34.00959,1228.7,1228.6,0.23907777]
[1610151043559,4.00959,1228.7,1228.6,0.23907777]
[1610151043858,34.00959,1228.7,1228.6,0.23907777]
[1610151044158,4.00959,1228.7,1228.6,0.23907777]
[1610151044358,4.00959,1228.7,1228.6,0.47789095]
[1610151044559,30.0,1229.2,1228.7,47.3836]
[1610151044765,30.0,1229.5,1228.7,47.3836]
[1610151045060,30.0,1229.5,1228.9,0.23879136]
[1610151045761,30.0,1229.5,1228.8,0.23879509]
[1610151046261,30.0,1229.5,1228.7,47.62230735]
[1610151047163,4.00959,1228.8,1228.7,47.62230735]
[1610151047461,34.00959,1228.8,1228.7,47.62230735]
[1610151048265,4.00959,1228.8,1228.7,47.62230735]
[1610151048465,30.0,1229.5,1228.7,47.62230735]
[1610151048764,30.0,1229.5,1228.7,47.3836]
[1610151049064,4.00959,1228.8,1228.7,0.23813424]
[1610151050370,34.00959,1228.8,1228.7,0.23813424]
[1610151050871,34.00959,1228.8,1228.6,0.23816894]
[1610151051370,4.00959,1228.8,1228.6,0.23816894]
[1610151051571,34.00959,1228.8,1228.6,0.23816894]
[1610151055077,34.00959,1228.8,1228.5,0.23854302]
[1610151055878,34.00959,1228.8,1228.4,2.1341992]
[1610151057077,4.00959,1228.5,1228.4,2.1341992]
[1610151058177,34.00959,1228.5,1228.4,2.1341992]
[1610151059077,30.0,1228.5,1228.4,1.896]
[1610151059279,30.0,1229.2,1228.4,1.896]